{"text_format":"2","workbook":"xlsx","n_sheets":1,"sheets":["Rutigliani"],"not_rendered":{"charts":0,"images":0,"macros":0,"external_links":0,"defined_names":1,"comments":0,"pivot_tables":0},"unopened":[],"bounds":{"document_bytes":16777216,"sheet_cells":100000,"run_cost":"one","rows_first":2000,"rows_last":500,"rows_between":2000,"halvings":0,"cell_chars":16384,"cell_head_chars":4096},"cells_cut":0,"cells_raw":0,"read":"whole","date_system":"1900"}

{"sheet":"Rutigliani","index":0,"n_rows":62,"n_cols":14,"rows_kept":62,"cut":false,"hidden":false,"merged":[[34,12,42,12],[1,13,1,15],[2,0,33,0],[2,10,33,10],[3,1,33,1],[3,13,33,15],[2,13,2,15],[43,2,60,2],[43,3,60,3],[43,4,46,4],[43,6,60,6],[34,0,42,0],[34,1,42,1],[34,2,42,2],[34,3,42,3],[34,6,42,6],[62,0,62,1],[64,0,64,3],[0,0,0,15],[43,12,60,12],[47,4,49,4],[50,4,51,4],[52,4,53,4],[54,4,56,4],[57,4,58,4],[59,4,60,4],[34,13,60,15],[35,4,36,4],[37,4,39,4],[40,4,42,4],[43,0,60,0],[43,1,60,1]]}
["Scheda di valutazione 2015 - Dirigente Pasqua Rutigliani "]
["Dimensione ","Oggetto della valutazione ","Peso ","Codice","Descrizione obiettivo ","Indicatore ","Target","Misurazione ","Autovalutazione ","Superiore Gerarchico","Bottom up ","Punteggio complessivo/definitivo","Punteggio pesato ","Note sul processo valutativo "]
["Affidabilità ","Obiettivi individuali (Progetti 2015)",{"$f":"35","v":35},"PROG_DRUOSSNR_01","Ateneo Trasparente - Mappatura competenze personale tecnico amministrativo","Progetto per la mappatura delle competenze del personale tecnico-amministrativo dell'Amministrazione Centrale e Decentrata (Relazione tecnica)","entro 31/12/2015","on ",2,2,null,2,{"$f":"L3*C3/2","v":35},"L’attribuzione del punteggio è stato misurato con riferimento alla scheda di assegnazione annuale degli obiettivi al dirigente indicata nel PdP 2015-2017"]
[null,"Servizi",{"$f":"35/31","v":1.1290322580645162},"SERV_DRUOSNR_01","Gestione amministrativa delle Relazioni Sindacali di Ateneo e delle prerogative sindacali ","Indicatori Scheda standard SERV_DRUOSNR_01","Target schede standard ","Si vedano schede di dettaglio ",4.5999999999999996,4.5999999999999996,null,4.5999999999999996,{"$f":"L4*C4/5","v":1.0387096774193547},"I target per i dirigenti sono valutati con riferimento a tutte le U.O. gestite (Valutazione confermata dal Direttore Generale)"]
[null,null,{"$f":"35/31","v":1.1290322580645162},"SERV_DRUOSNR_02","Servizio di gestione organico e lavori flessibili ","Indicatori Scheda standard SERV_DRUOSNR_02","Target schede standard ","Si vedano schede di dettaglio ",5,5,null,5,{"$f":"L5*C5/5","v":1.1290322580645162}]
[null,null,1.1290322580645162,"SERV_DRUOSNR_03","Servizio elaborazione dati/programmazione e monitoraggio organico di Ateneo ","Indicatori Scheda standard SERV_DRUOSNR_03","Target schede standard ","Si vedano schede di dettaglio ",4,4,null,4,0.90322580645161299]
[null,null,1.1290322580645162,"SERV_DRUOSNR_04","Rilascio certificati attività assistenziale svolta dal personale universitario convenzionato ","Indicatori Scheda standard SERV_DRUOSNR_04","Target schede standard ","Si vedano schede di dettaglio ",4,4,null,4,0.90322580645161299]
[null,null,1.1290322580645162,"SERV_DRUOSNR_05","Rilascio autorizzazione frequenza volontaria medici ed operatori sanitari e svolgimento attività assistenziale dottorandi e assegnisti di ricerca presso strutture sanitarie a direzione universitaria","Indicatori Scheda standard SERV_DRUOSNR_05","Target schede standard ","Si vedano schede di dettaglio ",4,4,null,4,0.90322580645161299]
[null,null,1.1290322580645162,"SERV_DRUOSNR_06","Rilascio diplomi, certificati e conferme di titoli di studio conseguiti presso Scuola per infermieri professionali (ad esaurimento) e presso Scuola per ostetriche (ad esaurimento)","Indicatori Scheda standard SERV_DRUOSNR_06","Target schede standard ","Si vedano schede di dettaglio ",4,4,null,4,0.90322580645161299]
[null,null,1.1290322580645162,"SERV_DRUOSNR_07","Adesione copertura assicurativa per colpa grave del personale universitario e specializzandi in servizio presso A.O.U. Policlinico","Indicatori Scheda standard SERV_DRUOSNR_07","Target schede standard ","Si vedano schede di dettaglio ",4,4,null,4,0.90322580645161299]
[null,null,1.1290322580645162,"SERV_DRUOSNR_08","Rilevazione presenze docenti medici universitari convenzionati e medici in formazione specialistica","Indicatori Scheda standard SERV_DRUOSNR_08","Target schede standard ","Si vedano schede di dettaglio ",4.5,4.5,null,4.5,1.0161290322580645]
[null,null,1.1290322580645162,"SERV_DRUOSNR_09","Gestione documentale ","Indicatori Scheda standard SERV_DRUOSNR_09","Target schede standard ","Si vedano schede di dettaglio ",4.8,4.8,null,4.8,1.0838709677419356]
[null,null,1.1290322580645162,"SERV_DRUOSNR_10","Pianificazione Organizzativa dei Dipartimenti e dei centri interdipartimentali e interuniversitari ","Indicatori Scheda standard SERV_DRUOSNR_10","Target schede standard ","Si vedano schede di dettaglio ",4,4,null,4,0.90322580645161299]
[null,null,1.1290322580645162,"SERV_DRUOSNR_11","Gestione autorizzazioni incarichi extra istituzionali dei professori di I e II fascia e dei ricercatori a tempo pieno","Indicatori Scheda standard SERV_DRUOSNR_11","Target schede standard ","Si vedano schede di dettaglio ",4,4,null,4,0.90322580645161299]
[null,null,1.1290322580645162,"SERV_DRUOSNR_12","Gestione giuridico-economica dei professori di I e II fascia, gestioner convenzioni per attività di didattica e di ricerca presso altri Atenei ","Indicatori Scheda standard SERV_DRUOSNR_12","Target schede standard ","Si vedano schede di dettaglio ",4,4,null,4,0.90322580645161299]
[null,null,1.1290322580645162,"SERV_DRUOSNR_13","Servizio gestione giuridico-economica dei ricercatori e conferimento assegni di ricerca","Indicatori Scheda standard SERV_DRUOSNR_13","Target schede standard ","Si vedano schede di dettaglio ",4,4,null,4,0.90322580645161299]
[null,null,1.1290322580645162,"SERV_DRUOSNR_14","Contratti per la didattica:collaboratori ed esperti linguistici e professori a contratto ","Indicatori Scheda standard SERV_DRUOSNR_14","Target schede standard ","Si vedano schede di dettaglio ",4,4,null,4,0.90322580645161299]
[null,null,1.1290322580645162,"SERV_DRUOSNR_15","Conferimento incarichi di insegnamento per affidamento, a titolo retribuito e gratuito, nei corsi di studio, nei master e nei corsi di perfezionamento e di alta formazione ","Indicatori Scheda standard SERV_DRUOSNR_15","Target schede standard ","Si vedano schede di dettaglio ",3.8,3.8,null,3.8,0.85806451612903234]
[null,null,1.1290322580645162,"SERV_DRUOSNR_16","Gestione della carriera del personale tecnico-amministrativo e dirigente e operai stagionali ","Indicatori Scheda standard SERV_DRUOSNR_16","Target schede standard ","Si vedano schede di dettaglio ",4.4000000000000004,4.4000000000000004,null,4.4000000000000004,0.9935483870967744]
[null,null,1.1290322580645162,"SERV_DRUOSNR_17","Gestione dell'orario di lavoro del personale tecnico-amministrativo, dirigente e del personale che presta servizio civile ","Indicatori Scheda standard SERV_DRUOSNR_17","Target schede standard ","Si vedano schede di dettaglio ",4.3,4.3,null,4.3,0.97096774193548396]
[null,null,1.1290322580645162,"SERV_DRUOSNR_18","Servizio di raccordo con l?istituto Previdenziale (INPS-GDP) ai fini della concessione ed erogazione del trattamento pensionistico e di fine servizio/rapporto in favore del personale universitario","Indicatori Scheda standard SERV_DRUOSNR_18","Target schede standard ","Si vedano schede di dettaglio ",4.9000000000000004,4.9000000000000004,null,4.9000000000000004,1.106451612903226]
[null,null,1.1290322580645162,"SERV_DRUOSNR_19","Servizio di gestione dei concorsi per assunzione di personale contrattualizzato (Dirigenti, T.A., Ricercatori TD, CEL)","Indicatori Scheda standard SERV_DRUOSNR_19","Target schede standard ","Si vedano schede di dettaglio ",5,5,null,5,1.1290322580645162]
[null,null,1.1290322580645162,"SERV_DRUOSNR_20","Servizio di gestione delle selezioni relative all'ammissione ai corsi di studio a numero programmato ","Indicatori Scheda standard SERV_DRUOSNR_20","Target schede standard ","Si vedano schede di dettaglio ",4.2,4.2,null,4.2,0.94838709677419364]
[null,null,1.1290322580645162,"SERV_DRUOSNR_21","Servizio gestione amministrativa dei volontari del servizio civile","Indicatori Scheda standard SERV_DRUOSNR_21","Target schede standard ","Si vedano schede di dettaglio ",4.9000000000000004,4.9000000000000004,null,4.9000000000000004,1.106451612903226]
[null,null,1.1290322580645162,"SERV_DRUOSNR_22","Servizio a favore di studenti diversamente abili ","Indicatori Scheda standard SERV_DRUOSNR_22","Target schede standard ","Si vedano schede di dettaglio ",4.8,4.8,null,4.8,1.0838709677419356]
[null,null,1.1290322580645162,"SERV_DRUOSNR_23","Servizio video web","Indicatori Scheda standard SERV_DRUOSNR_23","Target schede standard ","Si vedano schede di dettaglio ",4.3,4.3,null,4.3,0.97096774193548396]
[null,null,1.1290322580645162,"SERV_DRUOSNR_24","Supporto metodologico, gestionale e operativo alle attività del Presidio della Qualità di Ateneo","Indicatori Scheda standard SERV_DRUOSNR_24","Target schede standard ","Si vedano schede di dettaglio ",4.9000000000000004,4.9000000000000004,null,4.9000000000000004,1.106451612903226]
[null,null,1.1290322580645162,"SERV_DRUOSNR_25","Supporto metodologico, gestionale ed operativo relativo alla individuazione, definizione e attuazione di attività finalizzate alla qualità ed al miglioramento organizzativo ","Indicatori Scheda standard SERV_DRUOSNR_25","Target schede standard ","Si vedano schede di dettaglio ",4,4,null,4,0.90322580645161299]
[null,null,1.1290322580645162,"SERV_DRUOSNR_26","Partecipazione ad attività di formazione e aggiornamento professionale erogate anche da Enti privati e/o pubblici","Indicatori Scheda standard SERV_DRUOSNR_26","Target schede standard ","Si vedano schede di dettaglio ",4,4,null,4,0.90322580645161299]
[null,null,1.1290322580645162,"SERV_DRUOSNR_27","Progettazione e realizzazione di attività di formazione e aggiornamento professionale ","Indicatori Scheda standard SERV_DRUOSNR_27","Target schede standard ","Si vedano schede di dettaglio ",4,4,null,4,0.90322580645161299]
[null,null,1.1290322580645162,"SERV_DRUOSNR_28","Servizio automezzi/portierato/posta/centralini ","Indicatori Scheda standard SERV_DRUOSNR_28","Target schede standard ","Si vedano schede di dettaglio ",4,4,null,4,0.90322580645161299]
[null,null,1.1290322580645162,"SERV_DRUOSNR_29","Servizio istituzionale ","Indicatori Scheda standard SERV_DRUOSNR_29","Target schede standard ","Si vedano schede di dettaglio ",4,4,null,4,0.90322580645161299]
[null,null,1.1290322580645162,"SERV_DRUOSNR_30","Servizio di primo intervento di raccordo con le ditte di manutenzione, raccordo con i fornitori di utenze e di assistenza (elevatori, impinati audiovisioni, impianti vari anche in occasione di aventi)","Indicatori Scheda standard SERV_DRUOSNR_30","Target schede standard ","Si vedano schede di dettaglio ",4,4,null,4,0.90322580645161299]
[null,null,1.1290322580645162,"SERV_DRUOSNR_31","Servizio di gestione impianti di videosorveglianza","Indicatori Scheda standard SERV_DRUOSNR_31","Target schede standard ","Si vedano schede di dettaglio ",4,4,null,4,0.90322580645161299]
["Capacità Individuali","Indicatori delle capacità individuali ","10/100",null,"Crescita professionale","Mostra disponibilità a sperimentare nuovi progetti","Scala da 1 a 4 (1-Comportamento esibito raramente (0-40%); 2- Comportamento esibito spesso (41-79%); 3- Comportamento esibito molto spesso (80-99%); 4- Comportamento esibito sistematicamente (100%))",null,4,4,2.7560975609756095,{"$f":"AVERAGE(I35:K35)","v":3.5853658536585367},8.1686991869918693,"Le capacità sono valutate con il protocollo superiore gerarchico (peso 30), autovalutazione (peso 35), bottom up (35) "]
[{"$nulls":4},"Processi lavorativi","Dimostra efficacia ed efficienza nella gestione dei processi lavorativi di propria competenza",null,null,3,3,2.9024390243902438,{"$f":"AVERAGE(I36:K36)","v":2.9674796747967478}]
[{"$nulls":5},"Individua e propone aree di miglioramento dei processi lavorativi",null,null,4,3,2.6341463414634148,3.2113821138211383]
[{"$nulls":4},"Affidabilità","Rispetta impegni e scadenze",null,null,4,4,2.9512195121951219,3.6504065040650406]
[{"$nulls":5},"Realizza le prestazioni previste/assegnate con l'attenzione, la precisione e l'esattezza richieste ",null,null,4,3,2.9024390243902438,3.3008130081300813]
[{"$nulls":5},"Dimostra di conoscere e rispettare doveri, vincoli e procedure",null,null,4,4,3.1463414634146343,3.7154471544715446]
[{"$nulls":4},"Problem solving tecnico","Individua problemi pratici, anche relativi a processi lavorativi interconnessi, e li risolve con tempestività",null,null,4,3,2.9024390243902438,3.3008130081300813]
[{"$nulls":5},"Nell'immediato, si attiva prevedendo soluzioni alternative, selezionando quella più efficace e attuandola tempestivamente",null,null,4,3,2.8292682926829267,3.2764227642276418]
[{"$nulls":5},"In prospettiva, analizza le situazioni che si sono presentate e si attiva per la ricerca di soluzioni innovative e di miglioramento",null,null,4,3,2.8536585365853657,3.2845528455284554]
["Capacità Manageriali ","Indicatori delle capacità manageriali ","20/100",null,"Gestione dell'organizzazione","Analizza le possibili cause di problemi organizzativi e ne anticipa la soluzione","Scala da 1 a 4 (1-Comportamento esibito raramente (0-40%); 2- Comportamento esibito spesso (41-79%); 3- Comportamento esibito molto spesso (80-99%); 4- Comportamento esibito sistematicamente (100%))",null,4,3,2.5121951219512195,3.1707317073170729,16.524390243902438]
[{"$nulls":5},"Risponde con tempestività ed efficacia alla gestione di situazioni organizzative critiche, anche non prevedibili",null,null,4,3,2.7317073170731709,3.2439024390243905]
[{"$nulls":5},"Si adopera per adattare l'organizzazione del proprio ufficio a variazioni nelle esigenze degli utenti interni ed esterni ",null,null,4,3,2.6829268292682928,3.2276422764227646]
[{"$nulls":5},"Si adopera per adattare l'organizzazione del proprio ufficio al variare delle risorse disponibili",null,null,4,3,2.6341463414634148,3.2113821138211383]
[{"$nulls":4},"Programmazione e controllo ","Pianifica il proprio lavoro e quello degli eventuali collaboratori identificando con accuratezza obiettivi compatibili con le risorse disponibili",null,null,3,3,2.5853658536585367,2.8617886178861789]
[{"$nulls":5},"Valuta le risorse necessarie in relazione agli obiettivi da raggiungere ",null,null,4,3,2.6829268292682928,3.2276422764227646]
[{"$nulls":5},"Tiene conto dei risultati del passato in fase di ripianificazione degli obiettivi e delle attività",null,null,4,3,2.7317073170731709,3.2439024390243905]
[{"$nulls":4},"Project Management ","Pianifica con accuratezza le attività da realizzare ed i risultati da ottenere in relazione ai programmi ed i progetti dei quali è responsabile",null,null,4,3,2.7804878048780486,3.2601626016260163]
[{"$nulls":5},"Stima con accuratezza risorse necessarie e tempi di realizzazione delle diverse attività",null,null,4,3,2.7073170731707319,3.2357723577235773]
[{"$nulls":4},"Gestione e valorizzazione dei collaboratori ","Indirizza, motiva e valuta i propri collaboratori ",null,null,3,3,2.6585365853658538,2.8861788617886179]
[{"$nulls":5},"Coinvolge i collaboratori nella definizione degli obiettivi e nella programmazione delle attività",null,null,4,3,2.5365853658536586,3.1788617886178865]
[{"$nulls":4},"Orientamento all'utente interno","Costruisce relazioni positive, proficue ed efficaci con i colleghi",null,null,4,3,2.6341463414634148,3.2113821138211383]
[{"$nulls":5},"Condivide le informazioni",null,null,4,3,2.7317073170731709,3.2439024390243905]
[{"$nulls":5},"Contribuisce a creare un clima interno positivo (orientamento al risultato e alla produttività, relazioni interne produttive, valorizzazione delle differenze, ecc…)",null,null,4,3,2.6829268292682928,3.2276422764227646]
[{"$nulls":4},"Orientamento all'utente esterno","Si adopera per offrire un servizio di qualità all'utente",null,null,4,3,2.9512195121951219,3.3170731707317072]
[{"$nulls":5},"Ascolta e comprende i bisogni dell'utente, proponendo soluzioni coerenti alle attese",null,null,4,3,2.975609756097561,3.3252032520325208]
[{"$nulls":4},"Comunicazione ","Diffonde rapidamente tra i colleghi notizie e informazioni rilevanti per il contesto organizzativo",null,null,4,3,2.6341463414634148,3.2113821138211383]
[{"$nulls":5},"E' chiaro ed esaustivo e rispettoso dei tempi nel corso di incontri e riunioni",null,null,4,3,2.6829268292682928,3.2276422764227646]
[{"$nulls":12},{"$f":"SUM(M3:M61)","v":89.589863624442756}]